bitfinex/quotes_BTCUSD_20250316
["timestamp","ask_amount","ask_price","bid_price","bid_amount"]
[1742129100892,0.0003384,82842.0,82841.0,0.332897]
[1742129101092,0.0003384,82842.0,82841.0,0.39523824]
[1742129101517,0.0003384,82842.0,82841.0,1.89523824]
[1742129102415,0.0003384,82842.0,82841.0,1.90123824]
[1742129102981,0.0003384,82842.0,82841.0,1.90523824]
[1742129103295,0.0003384,82842.0,82841.0,1.90123824]
[1742129103685,0.0003384,82842.0,82841.0,1.90723824]
[1742129103886,0.0003384,82842.0,82841.0,1.90123824]
[1742129104112,0.0003384,82842.0,82841.0,1.90723824]
[1742129104453,0.0003384,82842.0,82841.0,0.40723824]
[1742129107650,0.0003384,82842.0,82841.0,0.70723824]
[1742129115581,0.0002384,82842.0,82841.0,0.70723824]
[1742129119522,0.0002384,82842.0,82841.0,0.70123824]
[1742129119721,0.0002384,82842.0,82841.0,0.70723824]
[1742129119921,0.0002384,82842.0,82841.0,0.70123824]
[1742129120320,0.0002384,82842.0,82841.0,0.70723824]
[1742129120534,0.0002384,82842.0,82841.0,2.20123824]
[1742129120880,0.0002384,82842.0,82841.0,2.20723824]
[1742129122645,4e-07,82842.0,82841.0,2.20723824]
[1742129122876,4e-07,82842.0,82841.0,2.21223824]
[1742129123376,4e-07,82842.0,82841.0,2.20623824]
[1742129123581,4e-07,82842.0,82841.0,2.20023824]
[1742129123782,4e-07,82842.0,82841.0,2.20623824]
[1742129123996,4e-07,82842.0,82841.0,2.21223824]
[1742129124197,4e-07,82842.0,82841.0,2.20623824]
[1742129124610,0.00046262,82857.0,82856.0,0.677551]
[1742129124824,0.00046262,82857.0,82856.0,0.83509224]
[1742129125272,0.00046262,82857.0,82856.0,2.33509224]
[1742129126159,0.00046262,82857.0,82856.0,2.34109224]
[1742129126358,0.00046262,82857.0,82856.0,2.34609224]
[1742129126821,0.00046262,82857.0,82856.0,2.34109224]
[1742129127228,0.00046262,82857.0,82856.0,2.34709224]
[1742129127384,0.00046262,82857.0,82856.0,2.35209224]
[1742129127986,0.0003384,82886.0,82872.0,0.380402]
[1742129128192,0.00075287,82873.0,82872.0,0.53790285]
[1742129128600,0.00075287,82873.0,82872.0,0.55205817]
[1742129128797,0.00075287,82873.0,82872.0,2.35205817]
[1742129129632,0.00075287,82873.0,82872.0,2.35705817]
[1742129129823,0.00075287,82873.0,82872.0,2.35205817]
[1742129130373,0.00075287,82873.0,82872.0,0.86205817]
[1742129130711,0.00075287,82873.0,82872.0,0.85705817]
[1742129131117,0.00075287,82873.0,82872.0,0.86305817]
[1742129134649,0.00075287,82873.0,82872.0,0.87220402]
[1742129135100,0.00065287,82873.0,82872.0,0.87220402]
[1742129138224,0.253352,82889.0,82884.0,0.241298]
[1742129138584,0.2413,82885.0,82880.0,0.253377]
[1742129138757,0.012064,82886.0,82880.0,0.253377]
[1742129138957,0.012064,82886.0,82881.0,0.241307]
[1742129139822,0.253356,82887.0,82881.0,0.241307]
[1742129140155,0.241298,82885.0,82880.0,0.253377]
[1742129140545,0.253356,82887.0,82884.0,0.001]
[1742129140737,0.253356,82887.0,82882.0,0.384185]
[1742129141449,0.012064,82888.0,82884.0,0.2413]
[1742129141795,0.253354,82888.0,82884.0,0.2413]
[1742129142929,0.253354,82888.0,82884.0,0.2423]
[1742129143136,0.253354,82888.0,82884.0,0.001]
[1742129143347,0.253354,82888.0,82883.0,0.241302]
[1742129143503,0.253354,82888.0,82884.0,0.002]
[1742129144390,0.253354,82888.0,82884.0,0.243299]
[1742129144862,0.253354,82888.0,82884.0,0.242299]
[1742129145925,0.253254,82888.0,82884.0,0.242299]
[1742129147036,0.253254,82888.0,82884.0,0.243299]
[1742129151005,0.253254,82888.0,82884.0,0.243468]
[1742129151231,0.253592,82888.0,82884.0,0.243468]
[1742129156086,0.253592,82888.0,82885.0,0.14284]
[1742129157775,0.253592,82888.0,82885.0,0.14384]
[1742129158279,0.241628,82888.0,82885.0,0.386137]
[1742129158847,0.000338,82888.0,82886.0,0.241293]
[1742129159047,0.000338,82888.0,82886.0,0.253357]
[1742129160485,0.000338,82888.0,82886.0,0.254358]
[1742129160797,0.000338,82888.0,82886.0,0.255358]
[1742129161667,0.000338,82888.0,82886.0,0.002]
[1742129162418,0.241629,82888.0,82887.0,0.1428]
[1742129162644,0.012402,82888.0,82887.0,0.1428]
[1742129163626,0.012402,82888.0,82887.0,0.001]
[1742129163823,0.088402,82888.0,82887.0,0.001]
[1742129164069,0.088402,82888.0,82887.0,0.002]
[1742129165314,0.012402,82888.0,82887.0,0.002]
[1742129169752,0.000338,82888.0,82887.0,0.002]
[1742129169954,0.000338,82888.0,82887.0,0.014064]
[1742129170159,0.012062,82900.0,82899.0,0.0005]
[1742129170510,0.253315,82901.0,82899.0,0.0005]
[1742129171087,0.012062,82900.0,82899.0,0.0005]
[1742129175261,0.0124,82900.0,82899.0,0.0005]
[1742129176458,0.000338,82900.0,82899.0,0.0005]
[1742129177318,0.0124,82900.0,82899.0,0.0005]
[1742129179677,0.000338,82900.0,82899.0,0.0005]
[1742129181658,0.012063,82892.0,82882.0,0.0813]
[1742129181854,0.012064,82887.0,82875.0,0.0813]
[1742129182062,0.012064,82887.0,82879.0,0.14272]
[1742129182304,0.03097762,82887.0,82869.0,0.25341]
[1742129182503,0.03097762,82887.0,82875.0,0.14272]
[1742129183235,0.03097762,82887.0,82886.0,0.002169]
[1742129183442,0.03097762,82887.0,82886.0,0.000169]
[1742129183786,0.03097762,82887.0,82886.0,0.003169]
[1742129184011,0.03097762,82887.0,82886.0,0.006169]
[1742129185305,0.01891362,82887.0,82886.0,0.006169]
[1742129186551,0.03097762,82887.0,82886.0,0.006169]
[1742129186972,0.012064,82887.0,82886.0,0.006169]
[1742129191794,0.03097803,82887.0,82886.0,0.006169]
[1742129191999,0.01891403,82887.0,82886.0,0.006169]
[1742129193725,0.01891403,82887.0,82886.0,0.018233]
[1742129195006,0.01891403,82887.0,82886.0,0.006169]
[1742129195210,0.03097803,82887.0,82886.0,0.006169]
[1742129196886,0.012064,82887.0,82886.0,0.006169]
[1742129200407,0.0309779,82887.0,82886.0,0.006169]
[1742129202291,0.03626979,82887.0,82886.0,0.006169]
[1742129202492,0.0309779,82887.0,82886.0,0.006169]
[1742129213799,0.03648308,82887.0,82886.0,0.006169]
[1742129216285,0.02441908,82887.0,82886.0,0.006169]
[1742129217693,0.02291908,82887.0,82886.0,0.006169]
[1742129218489,0.02291908,82887.0,82886.0,0.064233]
[1742129218759,0.00550518,82887.0,82886.0,0.14843938]
[1742129218964,0.000338,82889.0,82888.0,0.095064]
[1742129219298,0.000338,82889.0,82888.0,0.09627026]
[1742129221559,0.000338,82889.0,82888.0,0.095064]
[1742129221920,0.012402,82889.0,82888.0,0.007]
[1742129222133,0.0178954,82889.0,82888.0,0.14956]
[1742129229781,0.0058314,82889.0,82888.0,0.161624]
[1742129229987,0.0058314,82889.0,82888.0,0.288024]
[1742129230203,0.000338,82889.0,82888.0,0.288024]
[1742129232513,0.000338,82889.0,82888.0,0.27596]
[1742129232709,0.00584753,82889.0,82888.0,0.27596]
[1742129232909,0.000338,82889.0,82888.0,0.27596]
[1742129233111,0.00584753,82889.0,82888.0,0.27596]
[1742129233317,0.000338,82889.0,82888.0,0.27596]
[1742129233524,0.01791153,82889.0,82888.0,0.007]
[1742129233729,0.02342106,82889.0,82888.0,0.007]
[1742129234164,0.26470706,82889.0,82888.0,0.007]
[1742129238267,0.34450706,82889.0,82888.0,0.007]
[1742129238471,0.77963277,82889.0,82888.0,1e-06]
[1742129238672,0.633156,82887.0,82886.0,1e-06]
[1742129239115,0.63865154,82887.0,82886.0,1e-06]
[1742129239317,0.65756862,82887.0,82886.0,1e-06]
[1742129240274,0.63856862,82887.0,82886.0,1e-06]
[1742129240484,0.65063262,82887.0,82886.0,1e-06]
[1742129241565,0.65163262,82887.0,82886.0,1e-06]
[1742129242451,0.65163262,82887.0,82884.0,0.000169]
[1742129242452,0.633162,82885.0,82884.0,1e-06]
[1742129242996,0.63865957,82885.0,82884.0,1e-06]
[1742129243778,0.64065957,82885.0,82884.0,1e-06]
[1742129244220,0.64265957,82885.0,82884.0,1e-06]
[1742129244651,0.64065957,82885.0,82884.0,1e-06]
[1742129244852,0.64365957,82885.0,82884.0,1e-06]
[1742129245278,0.64165957,82885.0,82884.0,1e-06]
[1742129245662,0.7642346,82885.0,82884.0,1e-06]
[1742129245981,0.64465957,82885.0,82884.0,1e-06]
[1742129246765,0.09129757,82885.0,82884.0,1e-06]
[1742129246942,1.76155957,82885.0,82884.0,1e-06]
[1742129247145,1.76155957,82885.0,82857.0,0.0001691]
[1742129247146,0.253444,82858.0,82857.0,0.0001691]
[1742129247595,0.27220462,82858.0,82857.0,0.0001691]
[1742129248585,0.27227952,82858.0,82857.0,0.0001691]
[1742129250124,0.27427952,82858.0,82857.0,0.0001691]
[1742129251631,0.57427952,82858.0,82857.0,0.0001691]
[1742129251831,0.59320219,82858.0,82857.0,0.0001691]
[1742129252034,0.58780147,82858.0,82857.0,0.0001691]
[1742129258349,0.7073765,82858.0,82857.0,0.0001691]
[1742129258605,0.58780147,82858.0,82857.0,0.0001691]
[1742129259180,0.58192837,82858.0,82857.0,0.0001691]
[1742129261425,0.58192837,82858.0,82857.0,1e-07]
[1742129261797,0.5630057,82858.0,82857.0,1e-07]
[1742129262141,0.6104057,82858.0,82857.0,1e-07]
[1742129262600,0.5630057,82858.0,82857.0,1e-07]
[1742129264910,0.58192769,82858.0,82857.0,1e-07]
[1742129272426,0.58226609,82858.0,82857.0,1e-07]
[1742129273308,0.5633441,82858.0,82857.0,1e-07]
[1742129276808,0.58226632,82858.0,82857.0,1e-07]
[1742129276988,0.56726632,82858.0,82857.0,1e-07]
[1742129277540,0.57933432,82858.0,82857.0,1e-07]
[1742129277794,0.5604121,82858.0,82857.0,1e-07]
[1742129281102,0.5793345,82858.0,82857.0,1e-07]
[1742129282298,0.5604121,82858.0,82857.0,1e-07]
[1742129283429,0.72839481,82858.0,82857.0,1e-07]
[1742129283629,0.5604121,82858.0,82857.0,1e-07]
[1742129285237,0.57933448,82858.0,82857.0,1e-07]
[1742129295295,0.58492869,82858.0,82857.0,1e-07]
[1742129300390,0.58492869,82858.0,82857.0,1e-07]
[1742129301833,0.58492869,82858.0,82857.0,0.0481001]
[1742129302425,0.02692989,82858.0,82857.0,0.0481001]
[1742129302624,0.02692989,82858.0,82857.0,0.1288001]
[1742129302625,0.02007551,82858.0,82857.0,0.1288001]
[1742129303308,0.01907551,82858.0,82857.0,0.1288001]
[1742129303509,0.01807551,82858.0,82857.0,0.1288001]
[1742129303910,0.01807551,82858.0,82857.0,1e-07]
[1742129304534,0.31807551,82858.0,82857.0,1e-07]
[1742129304735,0.34507045,82858.0,82857.0,1e-07]
[1742129305145,0.31807551,82858.0,82857.0,1e-07]
[1742129306367,0.32107551,82858.0,82857.0,1e-07]
[1742129306565,0.32407551,82858.0,82857.0,1e-07]
[1742129317653,0.43723959,82858.0,82857.0,1e-07]
[1742129318222,0.40047551,82858.0,82857.0,1e-07]
[1742129318523,0.52005054,82858.0,82857.0,1e-07]
[1742129319619,0.62809116,82858.0,82857.0,1e-07]
[1742129320013,0.50851613,82858.0,82857.0,1e-07]
[1742129320988,0.92541613,82858.0,82857.0,1e-07]
[1742129321782,0.81737551,82858.0,82857.0,1e-07]
[1742129322388,0.74097551,82858.0,82857.0,1e-07]
[1742129323360,0.012071,82842.0,82841.0,0.0001691]
[1742129323499,0.01760845,82842.0,82841.0,0.0001691]
[1742129324319,0.27795469,82842.0,82841.0,0.0001691]
[1742129325120,0.27795469,82842.0,82841.0,0.0021691]
[1742129325524,0.27795469,82842.0,82841.0,0.0041691]
[1742129325728,0.27795469,82842.0,82841.0,0.1286691]
[1742129330759,0.02446069,82842.0,82841.0,0.1286691]
[1742129332028,0.00553745,82842.0,82841.0,0.1286691]
[1742129332451,0.253486,82845.0,82841.0,0.1286691]
[1742129332973,0.24697305,82844.0,82841.0,0.1286691]
[1742129333473,0.241422,82843.0,82841.0,0.1246691]
[1742129333649,0.241422,82843.0,82841.0,0.1256691]
[1742129333855,0.00555102,82842.0,82841.0,0.1256691]
[1742129335217,0.00555102,82842.0,82841.0,0.1246691]
[1742129335424,0.0244735,82842.0,82841.0,0.1266691]
[1742129335843,0.01892248,82842.0,82841.0,0.1256691]
[1742129335971,0.01892248,82842.0,82841.0,0.1246691]
[1742129336353,0.00555024,82842.0,82841.0,0.1286691]
[1742129337482,0.253486,82845.0,82841.0,0.1286691]
[1742129337678,0.00555024,82842.0,82841.0,0.1286691]
[1742129337905,0.253486,82845.0,82841.0,0.1286691]
[1742129338477,0.00555427,82844.0,82841.0,0.1266691]
[1742129338648,0.25904427,82844.0,82841.0,0.1246691]
[1742129338848,0.253492,82843.0,82841.0,0.1256691]
[1742129339348,0.00555026,82842.0,82841.0,0.1256691]
[1742129339750,0.00555026,82842.0,82841.0,0.1266691]
[1742129339895,0.00555026,82842.0,82841.0,0.1256691]
[1742129340297,0.00555026,82842.0,82841.0,0.1266691]
[1742129340496,0.00555026,82842.0,82841.0,0.1256691]
[1742129341297,0.00555026,82842.0,82841.0,0.1246691]
[1742129341754,0.00555026,82842.0,82841.0,0.1266691]
[1742129342118,0.00555026,82842.0,82841.0,0.1286691]
[1742129342624,0.241407,82848.0,82841.0,0.1286691]
[1742129342813,0.00554956,82842.0,82841.0,0.3700941]
[1742129343020,0.241407,82848.0,82841.0,0.3700941]
[1742129343215,0.253475,82849.0,82842.0,0.241421]
[1742129343420,0.253475,82849.0,82845.0,0.241414]
[1742129343625,0.02543286,82862.0,82855.0,0.241382]
[1742129343762,0.03853903,82867.0,82855.0,0.241382]
[1742129343763,0.03853903,82867.0,82856.0,0.136369]
[1742129344327,0.03853903,82867.0,82856.0,0.13757583]
[1742129344686,0.01134542,82867.0,82856.0,0.13757583]
[1742129345304,0.01891753,82861.0,82856.0,0.13757583]
[1742129345900,0.01891753,82861.0,82856.0,0.14157583]
[1742129346109,0.01891753,82861.0,82856.0,0.14357583]
[1742129346712,0.01891753,82861.0,82856.0,0.142369]
[1742129347507,0.01891753,82861.0,82856.0,0.1435757]
[1742129348123,0.01891753,82861.0,82856.0,0.4435757]
[1742129348340,0.01891753,82861.0,82856.0,0.442369]
[1742129348834,0.01891753,82861.0,82856.0,0.45690985]
[1742129349035,0.0003382,82884.0,82883.0,0.253369]
[1742129350148,0.0003382,82884.0,82883.0,0.251369]
[1742129351163,0.00600279,82884.0,82883.0,0.251369]
[1742129351632,0.00600279,82884.0,82883.0,0.254369]
[1742129352130,0.0003382,82884.0,82883.0,0.257369]
[1742129352333,0.241277,82893.0,82888.0,0.241289]
[1742129353481,0.25334,82893.0,82887.0,0.012064]
[1742129353816,0.27225549,82892.0,82886.0,0.241294]
[1742129354562,0.241286,82889.0,82884.0,0.012065]
[1742129354743,0.241286,82889.0,82884.0,0.253364]
[1742129354958,0.253346,82891.0,82885.0,0.241296]
[1742129355311,0.253346,82891.0,82885.0,0.25336]
[1742129355538,0.01891249,82892.0,82886.0,0.253356]
[1742129355742,0.01891249,82892.0,82891.0,0.012064]
[1742129356140,0.01891249,82892.0,82891.0,0.087964]
[1742129356341,0.000338,82900.0,82899.0,0.012062]
[1742129356546,0.000338,82900.0,82899.0,0.300219]
[1742129356752,0.000338,82900.0,82899.0,0.376119]
[1742129356933,0.000338,82900.0,82899.0,0.1228]
[1742129357135,0.000338,82900.0,82892.0,0.241277]
[1742129357136,0.241276,82893.0,82891.0,0.0759]
[1742129357378,0.012063,82892.0,82891.0,0.0759]
[1742129357584,0.241276,82893.0,82891.0,0.0759]
[1742129357787,0.012063,82892.0,82891.0,0.0769]
[1742129358386,0.012064,82890.0,82889.0,0.0469]
[1742129358589,0.012064,82887.0,82886.0,0.0759]
[1742129358992,0.241286,82889.0,82886.0,0.0759]
[1742129359202,0.012063,82892.0,82886.0,0.317194]
[1742129359680,0.253349,82890.0,82886.0,0.0759]
[1742129359889,0.012064,82889.0,82886.0,0.0819]
[1742129360304,0.012064,82889.0,82886.0,0.0759]
[1742129360511,0.241291,82888.0,82886.0,0.0799]
[1742129361486,0.241281,82891.0,82886.0,0.091964]
[1742129361681,0.241276,82893.0,82887.0,0.012064]
[1742129361879,0.012063,82898.0,82892.0,0.012063]
[1742129362110,0.253325,82898.0,82889.0,0.012064]
[1742129362328,0.241283,82891.0,82886.0,0.0809]
[1742129362503,0.241283,82891.0,82886.0,0.320192]
[1742129362699,0.253347,82891.0,82886.0,0.332256]
[1742129362903,0.241285,82890.0,82887.0,0.002]
[1742129363084,0.241285,82890.0,82886.0,0.090964]
[1742129363289,0.241285,82890.0,82886.0,0.332257]
[1742129363483,0.253345,82891.0,82889.0,0.001]
[1742129363689,0.241285,82890.0,82886.0,0.0759]
[1742129364709,0.253339,82893.0,82887.0,0.012064]
[1742129364915,0.01891246,82890.0,82887.0,0.012064]
[1742129365211,0.01891246,82890.0,82889.0,0.25335]
[1742129366244,0.01891246,82890.0,82888.0,0.241287]
[1742129366366,0.01891246,82890.0,82888.0,0.253351]
[1742129366566,0.01891246,82890.0,82889.0,0.0033382]
[1742129367054,0.01891246,82890.0,82889.0,0.0154022]
[1742129367848,0.01891246,82890.0,82889.0,0.0184022]
[1742129368228,0.01891246,82890.0,82889.0,0.0154022]
[1742129369332,0.01891246,82890.0,82889.0,0.0184022]
[1742129369534,0.01891246,82890.0,82889.0,0.09720856]
[1742129370949,0.01891246,82890.0,82889.0,0.14370856]
[1742129371344,0.0001691,82893.0,82892.0,0.25334]
[1742129373337,0.0001691,82893.0,82892.0,0.25634]
[1742129374092,0.0001691,82893.0,82892.0,0.26034]
[1742129374767,0.01907911,82893.0,82892.0,0.26034]
[1742129375173,0.01907911,82893.0,82892.0,0.40222]
[1742129378231,0.0001691,82893.0,82892.0,0.14888]
[1742129378558,0.2414431,82893.0,82892.0,0.14888]
[1742129378873,0.0001691,82893.0,82892.0,0.14888]
[1742129380203,0.0001691,82893.0,82892.0,0.1492182]
[1742129380866,0.0001691,82893.0,82892.0,0.1612812]
[1742129381209,0.0001691,82893.0,82892.0,0.1492182]
[1742129382251,0.01907932,82893.0,82892.0,0.1492182]
[1742129383956,0.01907932,82893.0,82892.0,0.1612812]
[1742129389990,0.0001691,82893.0,82892.0,0.24118748]
[1742129391369,0.0001691,82893.0,82892.0,0.60372872]
[1742129391570,1e-07,82893.0,82892.0,0.59952244]
[1742129391891,1e-07,82893.0,82892.0,0.60052244]
[1742129392088,1e-07,82893.0,82892.0,2.10652244]
[1742129392470,1e-07,82893.0,82892.0,2.11152244]
[1742129392719,1e-07,82893.0,82892.0,2.10552244]
[1742129392859,1e-07,82893.0,82892.0,2.10652244]
[1742129393298,1e-07,82893.0,82892.0,2.11252244]
[1742129393502,1e-07,82893.0,82892.0,2.10652244]
[1742129393707,1e-07,82893.0,82892.0,2.11252244]
[1742129394486,1e-07,82893.0,82892.0,2.16252244]
[1742129394686,1e-07,82893.0,82892.0,2.11252244]
[1742129394859,1e-07,82893.0,82892.0,2.16252244]
[1742129398834,1e-07,82893.0,82892.0,2.16252244]
[1742129402985,1e-07,82893.0,82892.0,2.15752244]
[1742129403199,1e-07,82893.0,82892.0,2.16252244]
[1742129403395,1e-07,82893.0,82892.0,2.01564244]
[1742129403607,1e-07,82893.0,82892.0,1.95110159]
[1742129403935,1e-07,82893.0,82892.0,0.60736244]
[1742129404097,1e-07,82893.0,82892.0,0.59282159]
[1742129404577,1e-07,82893.0,82892.0,0.60736244]
[1742129405985,1e-07,82893.0,82892.0,0.59282159]
[1742129406105,1e-07,82893.0,82892.0,0.46612159]
[1742129406983,1e-07,82893.0,82892.0,0.46012159]
[1742129407162,1e-07,82893.0,82892.0,0.45412159]
[1742129407602,1e-07,82893.0,82892.0,0.3003382]
[1742129407756,1e-07,82893.0,82892.0,0.3063382]
[1742129408192,0.0053289,82893.0,82892.0,0.3184012]
[1742129408397,0.0053325,82893.0,82892.0,0.3184012]
[1742129408571,0.0053325,82893.0,82892.0,0.3234012]
[1742129409344,0.0173955,82893.0,82892.0,0.0113382]
[1742129409456,0.0173955,82893.0,82892.0,0.0003382]
[1742129409663,0.0120631,82893.0,82892.0,0.0043382]
[1742129410076,0.01735829,82893.0,82892.0,0.0083382]
[1742129410761,0.01735829,82893.0,82892.0,0.0043382]
[1742129410962,0.01735829,82893.0,82892.0,0.0073382]
[1742129411786,0.01735829,82893.0,82892.0,0.0033382]
[1742129411980,0.01735829,82893.0,82892.0,0.0063382]
[1742129412421,0.03627002,82893.0,82892.0,0.0063382]
[1742129412804,0.03627002,82893.0,82892.0,0.0003382]
[1742129413305,0.03627002,82893.0,82892.0,0.0023382]
[1742129413506,0.02420702,82893.0,82892.0,0.0144012]
[1742129413705,0.02420702,82893.0,82892.0,0.2556782]
[1742129413929,0.01891183,82893.0,82892.0,0.2556782]
[1742129414941,0.03097483,82893.0,82892.0,0.0023382]
[1742129415359,0.01891183,82893.0,82892.0,0.0023382]
[1742129415562,0.27224883,82893.0,82892.0,0.0023382]
[1742129416581,0.35374883,82893.0,82892.0,0.0023382]
[1742129417749,0.40244883,82893.0,82892.0,0.0023382]
[1742129417901,0.47078388,82893.0,82892.0,0.0023382]
[1742129418427,0.77078388,82893.0,82892.0,0.0023382]
[1742129418627,0.77078388,82893.0,82892.0,0.0013382]
[1742129418828,0.7955589,82893.0,82892.0,0.0013382]
[1742129419007,0.70931212,82893.0,82892.0,0.0003382]
[1742129419407,0.70831212,82893.0,82892.0,0.0003382]
[1742129419948,0.70931212,82893.0,82892.0,0.0003382]
[1742129420156,0.012069,82854.0,82843.0,0.1074241]
[1742129420364,0.241395,82852.0,82843.0,0.1194951]
[1742129420566,0.012069,82853.0,82843.0,0.1074241]
[1742129420567,0.01207,82844.0,82843.0,0.1074241]
[1742129421295,0.0121114,82844.0,82843.0,0.1074241]
[1742129422386,0.012071,82842.0,82837.0,0.01290313]
[1742129423822,0.012071,82842.0,82835.0,0.0001691]
[1742129424031,0.013071,82842.0,82841.0,0.0051691]
[1742129424242,0.013071,82842.0,82841.0,0.0101691]
[1742129425842,0.012071,82842.0,82841.0,0.0001691]
[1742129426207,0.012071,82842.0,82841.0,0.0101691]
[1742129429376,0.012071,82842.0,82841.0,0.0001691]
[1742129429779,0.012071,82842.0,82841.0,0.0041691]
[1742129429981,0.012071,82842.0,82841.0,0.0021691]
[1742129430250,0.012071,82842.0,82841.0,0.0001691]
[1742129430251,1.11044304,82842.0,82841.0,0.0001691]
[1742129430425,0.15674304,82842.0,82841.0,0.0001691]
[1742129431412,0.18108383,82842.0,82841.0,0.0001691]
[1742129432420,0.22592527,82842.0,82841.0,0.0001691]
[1742129432674,0.12755323,82842.0,82841.0,0.0001691]
[1742129433031,0.08900463,82842.0,82841.0,0.0001691]
[1742129433231,0.10793044,82842.0,82841.0,0.0001691]
[1742129436353,0.10828287,82842.0,82841.0,0.0001691]
[1742129437055,0.08935706,82842.0,82841.0,0.0001691]
[1742129443484,0.10828239,82842.0,82841.0,0.0001691]
[1742129447872,0.06198239,82842.0,82841.0,0.0001691]
[1742129448278,0.06162996,82842.0,82841.0,0.0001691]
[1742129448544,0.36162996,82842.0,82841.0,1e-07]
[1742129449078,0.34270463,82842.0,82841.0,1e-07]
[1742129449895,0.34470463,82842.0,82841.0,1e-07]
[1742129450105,0.34470463,82842.0,82835.0,0.0001691]
[1742129450106,0.012072,82836.0,82835.0,2e-07]
[1742129450267,0.012072,82833.0,82832.0,4e-07]
[1742129450463,0.40302004,82833.0,82832.0,4e-07]
[1742129450706,0.70302004,82833.0,82832.0,4e-07]
[1742129450907,0.70302004,82833.0,82827.0,0.0001692]
[1742129450908,0.253537,82828.0,82827.0,6e-07]
[1742129451287,0.26129536,82828.0,82827.0,6e-07]
[1742129451492,0.34169536,82828.0,82827.0,6e-07]
[1742129452239,0.36062468,82828.0,82827.0,6e-07]
[1742129452434,0.36062468,82828.0,82827.0,0.0010006]
[1742129452788,0.28022468,82828.0,82827.0,0.0010006]
[1742129453324,0.28022468,82828.0,82827.0,0.0020006]
[1742129453745,0.3043578,82828.0,82827.0,0.0020006]
[1742129456078,0.24922236,82828.0,82827.0,0.0020006]
[1742129456281,0.26129536,82828.0,82827.0,0.0020006]
[1742129464380,0.28022274,82828.0,82827.0,0.0020006]
[1742129466447,0.01639736,82828.0,82827.0,0.0020006]
[1742129466673,0.01817769,82828.0,82827.0,0.0020006]
[1742129466940,0.26127901,82828.0,82827.0,0.0020006]
[1742129469476,0.26127901,82828.0,82827.0,0.0847006]
[1742129469822,0.2802061,82828.0,82827.0,0.0847006]
[1742129470121,0.28405691,82828.0,82827.0,0.0847006]
[1742129470949,0.26512982,82828.0,82827.0,0.0847006]
[1742129473284,0.01159282,82828.0,82827.0,0.0847006]
[1742129473490,0.01159282,82828.0,82827.0,0.3840406]
[1742129473721,0.00563114,82828.0,82827.0,0.3840406]
[1742129473898,0.241441,82836.0,82831.0,0.241454]
[1742129474105,0.253511,82837.0,82831.0,0.253526]
[1742129474296,0.00602847,82835.0,82831.0,0.253526]
[1742129474620,0.00602847,82835.0,82832.0,0.012072]
[1742129474742,0.00602847,82835.0,82834.0,0.095172]
[1742129474967,0.253505,82839.0,82834.0,0.095172]
[1742129475173,0.00602847,82835.0,82834.0,0.095172]
[1742129475423,0.001,82836.0,82834.0,0.0831]
[1742129475803,0.01165944,82835.0,82834.0,0.0831]
[1742129477087,0.01165944,82835.0,82834.0,0.382418]
[1742129477431,0.01892523,82838.0,82837.0,0.252509]
[1742129477639,0.01892523,82838.0,82837.0,0.0831]
[1742129477845,0.03099623,82838.0,82837.0,0.0831]
[1742129478208,0.04267944,82838.0,82837.0,0.0831]
[1742129479074,0.03060844,82838.0,82837.0,0.0831]
[1742129479476,0.01168321,82838.0,82837.0,0.0831]
[1742129479632,0.00603582,82838.0,82837.0,0.0831]
[1742129479836,0.01168946,82838.0,82837.0,0.0841]
[1742129482912,0.01168946,82838.0,82837.0,0.096171]
[1742129483290,0.27239896,82849.0,82843.0,0.012071]
[1742129483612,0.01173645,82844.0,82841.0,0.253497]
[1742129483818,4.14e-05,82844.0,82841.0,0.253497]
[1742129484065,0.01169313,82843.0,82841.0,0.253497]
[1742129484210,0.01169313,82843.0,82840.0,0.012071]
[1742129484395,0.01169313,82843.0,82839.0,0.24143]
[1742129485004,0.241428,82841.0,82837.0,0.0831]
[1742129485245,0.241434,82839.0,82837.0,0.0831]
[1742129485583,0.00569784,82838.0,82837.0,0.0831]
[1742129486903,0.01171925,82838.0,82837.0,0.0831]
[1742129487414,0.02379025,82838.0,82837.0,0.0831]
[1742129488052,0.02379025,82838.0,82837.0,0.0841]
[1742129489267,0.02379025,82838.0,82837.0,0.001]
[1742129490202,0.0427148,82838.0,82837.0,0.001]
[1742129493352,0.0437148,82838.0,82837.0,0.001]
[1742129494491,0.0437148,82838.0,82834.0,0.0001693]
[1742129494492,0.012072,82835.0,82834.0,0.0001693]
[1742129494867,0.01809299,82835.0,82834.0,0.0001693]
[1742129495390,0.25953599,82835.0,82834.0,0.0001693]
[1742129496072,0.36640022,82835.0,82834.0,0.0001693]
[1742129496249,0.25953599,82835.0,82834.0,0.0001693]
[1742129496696,0.56862448,82835.0,82834.0,0.0001693]
[1742129498576,0.56862448,82835.0,82827.0,6e-07]
[1742129498577,0.332937,82828.0,82827.0,6e-07]
[1742129498983,0.33890521,82828.0,82827.0,6e-07]
[1742129499989,0.75580521,82828.0,82827.0,6e-07]
[1742129500207,1.06147369,82828.0,82819.0,0.001]
[1742129500395,0.253591,82810.0,82808.0,0.000338]
[1742129500703,0.25927254,82810.0,82808.0,0.000338]
[1742129501528,0.25927254,82810.0,82809.0,0.00075267]
[1742129501733,0.28329555,82810.0,82809.0,0.00075267]
[1742129502554,0.2891902,82810.0,82809.0,0.00075267]
[1742129503926,0.30812262,82810.0,82809.0,0.00075267]
[1742129504109,0.32051235,82810.0,82809.0,0.00075267]
[1742129504266,0.32941103,82810.0,82809.0,0.00075267]
[1742129504465,0.33141103,82810.0,82809.0,0.00075267]
[1742129504669,0.33441103,82810.0,82809.0,0.00075267]
[1742129505006,0.33241103,82810.0,82809.0,0.00075267]
[1742129505225,0.33441103,82810.0,82809.0,0.00075267]
[1742129506817,0.31547861,82810.0,82809.0,0.00075267]
[1742129510284,0.33440998,82810.0,82809.0,0.00075267]
[1742129510682,0.45398501,82810.0,82809.0,0.00075267]
[1742129510835,0.33440998,82810.0,82809.0,0.00075267]
[1742129511042,0.3255113,82810.0,82809.0,0.00075267]
[1742129511295,0.30657993,82810.0,82809.0,0.00075267]
[1742129511643,0.01657619,82810.0,82809.0,0.38004667]
[1742129512121,0.005,82810.0,82809.0,0.69458791]
[1742129512501,0.0242003,82839.0,82835.0,0.253513]
[1742129512710,0.00962656,82837.0,82836.0,0.33401]
[1742129512908,0.01287527,82838.0,82836.0,0.33401]